[Event "Chessable Masters - Torneo preliminare"]
[White "Haub, Thorsten Michael"]
[Black "Svane, Rasmus"]
[WhiteFideId "4610776"]
[BlackFideId "4657101"]
[WhiteElo "2456"]
[BlackElo "2621"]
[Result "0-1"]
[Round "4"]
[TimeControl "600+2"]
[Date "2023.03.13"]
[WhiteClock "0:01:50"]
[BlackClock "0:04:47"]

1. Nf3 {[%clk 0:10:01]}  d5 {[%clk 0:09:59]} 2. g3 {[%clk 0:10:02]}  Nc6 {[%clk 0:09:51]} 3. a3 {[%clk 0:09:58]}  e5 {[%clk 0:09:48]} 4. d3 {[%clk 0:09:58]}  a5 {[%clk 0:09:40]} 5. b3 {[%clk 0:09:57]}  Nf6 {[%clk 0:09:32]} 6. Bb2 {[%clk 0:09:49]}  Bd6 {[%clk 0:09:33]} 7. Nfd2 {[%clk 0:09:44]}  Bg4 {[%clk 0:09:08]} 8. h3 {[%clk 0:09:40]}  Bc8 {[%clk 0:09:06]} 9. e4 {[%clk 0:09:13]}  Be6 {[%clk 0:08:58]} 10. Nc3 {[%clk 0:09:07]}  O-O {[%clk 0:08:54]} 11. Bg2 {[%clk 0:08:57]}  dxe4 {[%clk 0:08:54]} 12. Ndxe4 {[%clk 0:08:50]}  Nxe4 {[%clk 0:08:51]} 13. dxe4 {[%clk 0:08:45]}  Bc5 {[%clk 0:08:47]} 14. Nd5 {[%clk 0:08:28]}  Qd7 {[%clk 0:08:46]} 15. Qd2 {[%clk 0:08:10]}  f6 {[%clk 0:08:40]} 16. f4 {[%clk 0:07:37]}  Rfd8 {[%clk 0:08:01]} 17. fxe5 {[%clk 0:06:39]}  Nxe5 {[%clk 0:07:34]} 18. O-O-O {[%clk 0:05:02]}  Bd6 {[%clk 0:07:24]} 19. Rhf1 {[%clk 0:04:27]}  Qf7 {[%clk 0:06:47]} 20. Qe3 {[%clk 0:03:55]}  a4 {[%clk 0:06:41]} 21. Nf4 {[%clk 0:02:45]}  axb3 {[%clk 0:05:46]} 22. Nxe6 {[%clk 0:02:44]}  bxc2 {[%clk 0:05:46]} 23. Rxd6 {[%clk 0:02:21]}  Rxd6 {[%clk 0:05:45]} 24. Nd4 {[%clk 0:02:09]}  Qc4 {[%clk 0:04:59]} 25. Qc3 {[%clk 0:01:53]}  Nd3+ {[%clk 0:04:45]} 26. Kxc2 {[%clk 0:01:50]}  Nxb2 {[%clk 0:04:47]} 0-1


[Site "Internet"]

[Event "Chessable Masters - Torneo preliminare"]
[White "Mamedov, Rauf"]
[Black "Piorun, Kacper"]
[WhiteFideId "13401653"]
[BlackFideId "1130420"]
[WhiteElo "2632"]
[BlackElo "2491"]
[Result "1-0"]
[Round "4"]
[TimeControl "600+2"]
[Date "2023.03.13"]
[WhiteClock "0:07:16"]
[BlackClock "0:01:14"]

1. e4 {[%clk 0:10:01]}  e5 {[%clk 0:09:58]} 2. Nf3 {[%clk 0:10:02]}  Nc6 {[%clk 0:09:59]} 3. Bb5 {[%clk 0:10:03]}  g6 {[%clk 0:09:56]} 4. Nc3 {[%clk 0:09:56]}  Bg7 {[%clk 0:09:50]} 5. h4 {[%clk 0:09:55]}  h5 {[%clk 0:09:50]} 6. d3 {[%clk 0:09:55]}  Nge7 {[%clk 0:09:41]} 7. Ng5 {[%clk 0:09:56]}  f6 {[%clk 0:09:28]} 8. Nf3 {[%clk 0:09:52]}  d6 {[%clk 0:09:24]} 9. a3 {[%clk 0:09:51]}  Be6 {[%clk 0:09:24]} 10. d4 {[%clk 0:09:48]}  Bg4 {[%clk 0:08:12]} 11. d5 {[%clk 0:09:07]}  a6 {[%clk 0:08:11]} 12. Be2 {[%clk 0:09:09]}  Na7 {[%clk 0:08:04]} 13. Be3 {[%clk 0:09:05]}  c6 {[%clk 0:07:31]} 14. Nd2 {[%clk 0:08:55]}  Bxe2 {[%clk 0:07:18]} 15. Qxe2 {[%clk 0:08:57]}  cxd5 {[%clk 0:07:12]} 16. exd5 {[%clk 0:08:58]}  Qd7 {[%clk 0:07:14]} 17. Nc4 {[%clk 0:08:59]}  Nac8 {[%clk 0:07:15]} 18. a4 {[%clk 0:08:52]}  f5 {[%clk 0:07:05]} 19. f3 {[%clk 0:08:51]}  O-O {[%clk 0:06:43]} 20. a5 {[%clk 0:08:50]}  Kh8 {[%clk 0:06:18]} 21. Bg5 {[%clk 0:08:45]}  Ng8 {[%clk 0:06:16]} 22. g4 {[%clk 0:08:44]}  Qf7 {[%clk 0:05:51]} 23. gxh5 {[%clk 0:08:42]}  gxh5 {[%clk 0:05:50]} 24. O-O-O {[%clk 0:08:43]}  Nf6 {[%clk 0:05:42]} 25. Kb1 {[%clk 0:08:41]}  Rb8 {[%clk 0:05:33]} 26. Be3 {[%clk 0:08:37]}  Nd7 {[%clk 0:04:58]} 27. Na4 {[%clk 0:08:33]}  Nf6 {[%clk 0:04:53]} 28. Qd3 {[%clk 0:07:58]}  Ne7 {[%clk 0:03:48]} 29. Nab6 {[%clk 0:07:51]}  Rbd8 {[%clk 0:03:45]} 30. Rhg1 {[%clk 0:07:50]}  e4 {[%clk 0:03:16]} 31. fxe4 {[%clk 0:07:50]}  fxe4 {[%clk 0:03:16]} 32. Qe2 {[%clk 0:07:41]}  Ng4 {[%clk 0:02:08]} 33. Bg5 {[%clk 0:07:41]}  Rfe8 {[%clk 0:02:06]} 34. Rdf1 {[%clk 0:07:26]}  Qg6 {[%clk 0:02:05]} 35. Ne3 {[%clk 0:07:27]}  Bd4 {[%clk 0:01:15]} 36. Nxg4 {[%clk 0:07:16]}  Bxg1 {[%clk 0:01:14]} 37. Rf6 {[%clk 0:07:16]} 1-0


[Site "Internet"]

[Event "Chessable Masters - Torneo preliminare"]
[White "Mekhitarian, Krikor Sevag"]
[Black "Iniyan, P"]
[WhiteFideId "2107660"]
[BlackFideId "25002767"]
[WhiteElo "2594"]
[BlackElo "2441"]
[Result "1/2-1/2"]
[Round "4"]
[TimeControl "600+2"]
[Date "2023.03.13"]
[WhiteClock "0:00:16"]
[BlackClock "0:01:29"]

1. Nf3 {[%clk 0:10:01]}  Nf6 {[%clk 0:10:00]} 2. c4 {[%clk 0:10:02]}  g6 {[%clk 0:09:59]} 3. Nc3 {[%clk 0:10:04]}  Bg7 {[%clk 0:10:01]} 4. e4 {[%clk 0:10:05]}  d6 {[%clk 0:10:03]} 5. d4 {[%clk 0:10:06]}  O-O {[%clk 0:10:04]} 6. h3 {[%clk 0:10:08]}  e5 {[%clk 0:10:05]} 7. d5 {[%clk 0:10:08]}  Na6 {[%clk 0:10:06]} 8. Be3 {[%clk 0:10:06]}  Nh5 {[%clk 0:10:02]} 9. g3 {[%clk 0:10:04]}  f5 {[%clk 0:09:55]} 10. exf5 {[%clk 0:10:06]}  gxf5 {[%clk 0:09:56]} 11. Nh4 {[%clk 0:09:48]}  Nf4 {[%clk 0:09:05]} 12. gxf4 {[%clk 0:09:48]}  Qxh4 {[%clk 0:09:05]} 13. Rg1 {[%clk 0:09:42]}  Kh8 {[%clk 0:08:29]} 14. Qd2 {[%clk 0:09:16]}  Re8 {[%clk 0:07:51]} 15. O-O-O {[%clk 0:08:48]}  Bh6 {[%clk 0:07:35]} 16. fxe5 {[%clk 0:01:35]}  f4 {[%clk 0:07:37]} 17. Bd4 {[%clk 0:01:36]}  dxe5 {[%clk 0:07:37]} 18. Re1 {[%clk 0:01:37]}  Qh5 {[%clk 0:07:13]} 19. Rxe5 {[%clk 0:01:36]}  Rxe5 {[%clk 0:07:09]} 20. Qe1 {[%clk 0:00:36]}  Bg7 {[%clk 0:03:35]} 21. Rxg7 {[%clk 0:00:36]}  Rxe1+ {[%clk 0:03:35]} 22. Kd2 {[%clk 0:00:38]}  Re5 {[%clk 0:03:36]} 23. Re7 {[%clk 0:00:40]}  Kg8 {[%clk 0:03:14]} 24. Rxe5 {[%clk 0:00:30]}  Qh4 {[%clk 0:02:49]} 25. Ne4 {[%clk 0:00:23]}  Bd7 {[%clk 0:02:49]} 26. Rh5 {[%clk 0:00:12]}  Qxh5 {[%clk 0:02:30]} 27. Nf6+ {[%clk 0:00:13]}  Kf7 {[%clk 0:02:31]} 28. Nxh5 {[%clk 0:00:15]}  f3 {[%clk 0:02:32]} 29. Bd3 {[%clk 0:00:15]}  h6 {[%clk 0:02:18]} 30. Nf4 {[%clk 0:00:16]}  Rg8 {[%clk 0:02:14]} 31. Be4 {[%clk 0:00:17]}  c5 {[%clk 0:02:02]} 32. Be3 {[%clk 0:00:14]}  b5 {[%clk 0:01:58]} 33. cxb5 {[%clk 0:00:09]}  Bxb5 {[%clk 0:02:00]} 34. Bxf3 {[%clk 0:00:10]}  Ke7 {[%clk 0:01:52]} 35. Ne6 {[%clk 0:00:05]}  Kd6 {[%clk 0:01:48]} 36. Bf4+ {[%clk 0:00:06]}  Ke7 {[%clk 0:01:48]} 37. Bxh6 {[%clk 0:00:07]}  Bd7 {[%clk 0:01:39]} 38. Bg5+ {[%clk 0:00:08]}  Kd6 {[%clk 0:01:37]} 39. Bf4+ {[%clk 0:00:10]}  Ke7 {[%clk 0:01:39]} 40. Nc7 {[%clk 0:00:07]}  Nxc7 {[%clk 0:01:37]} 41. d6+ {[%clk 0:00:07]}  Kf6 {[%clk 0:01:11]} 42. dxc7 {[%clk 0:00:09]}  Bxh3 {[%clk 0:01:13]} 43. Bd6 {[%clk 0:00:06]}  Ke6 {[%clk 0:01:09]} 44. Bxc5 {[%clk 0:00:07]}  Rc8 {[%clk 0:01:11]} 45. Bxa7 {[%clk 0:00:05]}  Rxc7 {[%clk 0:01:12]} 46. Be3 {[%clk 0:00:06]}  Bf5 {[%clk 0:01:14]} 47. Bd1 {[%clk 0:00:06]}  Rd7+ {[%clk 0:01:15]} 48. Ke1 {[%clk 0:00:07]}  Rh7 {[%clk 0:01:16]} 49. a4 {[%clk 0:00:05]}  Kd5 {[%clk 0:01:16]} 50. a5 {[%clk 0:00:06]}  Bd3 {[%clk 0:01:18]} 51. Kd2 {[%clk 0:00:06]}  Bb5 {[%clk 0:01:10]} 52. Bf3+ {[%clk 0:00:07]}  Kc4 {[%clk 0:01:09]} 53. Bb6 {[%clk 0:00:06]}  Rd7+ {[%clk 0:01:09]} 54. Ke3 {[%clk 0:00:06]}  Rd3+ {[%clk 0:01:09]} 55. Kf4 {[%clk 0:00:07]}  Rd2 {[%clk 0:01:10]} 56. Be3 {[%clk 0:00:03]}  Rxb2 {[%clk 0:01:10]} 57. Be4 {[%clk 0:00:03]}  Ra2 {[%clk 0:01:10]} 58. Bb6 {[%clk 0:00:04]}  Kc3 {[%clk 0:01:10]} 59. f3 {[%clk 0:00:06]}  Kd2 {[%clk 0:01:10]} 60. Bd5 {[%clk 0:00:06]}  Ra1 {[%clk 0:01:07]} 61. Ke5 {[%clk 0:00:07]}  Re1+ {[%clk 0:01:09]} 62. Kd4 {[%clk 0:00:05]}  Rc1 {[%clk 0:01:05]} 63. f4 {[%clk 0:00:06]}  Bd3 {[%clk 0:01:06]} 64. Bb7 {[%clk 0:00:05]}  Rc4+ {[%clk 0:01:05]} 65. Ke5 {[%clk 0:00:06]}  Ra4 {[%clk 0:01:06]} 66. f5 {[%clk 0:00:06]}  Ra1 {[%clk 0:01:02]} 67. f6 {[%clk 0:00:08]}  Re1+ {[%clk 0:01:04]} 68. Kd6 {[%clk 0:00:08]}  Rf1 {[%clk 0:01:05]} 69. Ke7 {[%clk 0:00:08]}  Re1+ {[%clk 0:01:07]} 70. Kf8 {[%clk 0:00:09]}  Rf1 {[%clk 0:01:06]} 71. Bd4 {[%clk 0:00:05]}  Rf4 {[%clk 0:01:02]} 72. Be5 {[%clk 0:00:06]}  Rf5 {[%clk 0:01:02]} 73. Bd4 {[%clk 0:00:07]}  Rxa5 {[%clk 0:01:01]} 74. f7 {[%clk 0:00:06]}  Bc4 {[%clk 0:01:00]} 75. Be4 {[%clk 0:00:03]}  Bxf7 {[%clk 0:00:58]} 76. Kxf7 {[%clk 0:00:04]}  Ra4 {[%clk 0:01:00]} 77. Bg6 {[%clk 0:00:03]}  Rxd4 {[%clk 0:01:01]} 78. Kg7 {[%clk 0:00:04]}  Ke3 {[%clk 0:01:03]} 79. Bh7 {[%clk 0:00:06]}  Kf4 {[%clk 0:01:04]} 80. Bg8 {[%clk 0:00:08]}  Ke5 {[%clk 0:01:05]} 81. Kh8 {[%clk 0:00:08]}  Rd7 {[%clk 0:01:06]} 82. Bb3 {[%clk 0:00:07]}  Kf6 {[%clk 0:01:08]} 83. Bc4 {[%clk 0:00:08]}  Kg6 {[%clk 0:01:08]} 84. Bg8 {[%clk 0:00:06]}  Rc7 {[%clk 0:01:08]} 85. Bb3 {[%clk 0:00:05]}  Rc3 {[%clk 0:01:10]} 86. Ba2 {[%clk 0:00:05]}  Rc1 {[%clk 0:01:10]} 87. Bb3 {[%clk 0:00:06]}  Kf6 {[%clk 0:01:06]} 88. Ba2 {[%clk 0:00:06]}  Rc2 {[%clk 0:01:06]} 89. Bb3 {[%clk 0:00:08]}  Rb2 {[%clk 0:01:07]} 90. Bc4 {[%clk 0:00:09]}  Rd2 {[%clk 0:01:07]} 91. Bb3 {[%clk 0:00:10]}  Kg6 {[%clk 0:01:09]} 92. Bc4 {[%clk 0:00:10]}  Rd4 {[%clk 0:01:09]} 93. Bb3 {[%clk 0:00:10]}  Rb4 {[%clk 0:01:07]} 94. Ba2 {[%clk 0:00:09]}  Rb7 {[%clk 0:01:04]} 95. Bc4 {[%clk 0:00:09]}  Rh7+ {[%clk 0:01:05]} 96. Kg8 {[%clk 0:00:10]}  Rd7 {[%clk 0:01:07]} 97. Kh8 {[%clk 0:00:10]}  Rd8+ {[%clk 0:01:06]} 98. Bg8 {[%clk 0:00:11]}  Rd3 {[%clk 0:01:08]} 99. Bc4 {[%clk 0:00:11]}  Re3 {[%clk 0:01:09]} 100. Ba2 {[%clk 0:00:11]}  Rh3+ {[%clk 0:01:06]} 101. Kg8 {[%clk 0:00:11]}  Ra3 {[%clk 0:01:08]} 102. Bb1+ {[%clk 0:00:12]}  Kf6 {[%clk 0:01:09]} 103. Bc2 {[%clk 0:00:11]}  Rc3 {[%clk 0:01:08]} 104. Bb1 {[%clk 0:00:12]}  Rc8+ {[%clk 0:01:04]} 105. Kh7 {[%clk 0:00:12]}  Rc1 {[%clk 0:01:06]} 106. Bd3 {[%clk 0:00:13]}  Kf7 {[%clk 0:01:07]} 107. Kh8 {[%clk 0:00:10]}  Rc3 {[%clk 0:01:08]} 108. Bb1 {[%clk 0:00:09]}  Ra3 {[%clk 0:01:09]} 109. Bc2 {[%clk 0:00:10]}  Re3 {[%clk 0:01:09]} 110. Bb1 {[%clk 0:00:10]}  Re1 {[%clk 0:01:11]} 111. Bc2 {[%clk 0:00:12]}  Ra1 {[%clk 0:01:13]} 112. Bd3 {[%clk 0:00:12]}  Kf8 {[%clk 0:01:14]} 113. Bc2 {[%clk 0:00:11]}  Rh1+ {[%clk 0:01:15]} 114. Bh7 {[%clk 0:00:12]}  Ke7 {[%clk 0:01:17]} 115. Kg7 {[%clk 0:00:13]}  Rg1+ {[%clk 0:01:19]} 116. Kh8 {[%clk 0:00:13]}  Kf6 {[%clk 0:01:21]} 117. Bc2 {[%clk 0:00:14]}  Rh1+ {[%clk 0:01:22]} 118. Kg8 {[%clk 0:00:15]}  Rc1 {[%clk 0:01:24]} 119. Bd3 {[%clk 0:00:15]}  Rc8+ {[%clk 0:01:25]} 120. Kh7 {[%clk 0:00:16]}  Kf7 {[%clk 0:01:26]} 121. Bb1 {[%clk 0:00:14]}  Ra8 {[%clk 0:01:27]} 122. Bc2 {[%clk 0:00:15]}  Ra4 {[%clk 0:01:29]} 123. Bxa4 {[%clk 0:00:16]} 1/2-1/2


[Site "Internet"]

[Event "Chessable Masters - Torneo preliminare"]
[White "Guseinov, Gadir"]
[Black "Cuenca Jimenez, Jose Fernando"]
[WhiteFideId "13401378"]
[BlackFideId "2255570"]
[WhiteElo "2632"]
[BlackElo "2455"]
[Result "1-0"]
[Round "4"]
[TimeControl "600+2"]
[Date "2023.03.13"]
[WhiteClock "0:04:17"]
[BlackClock "0:00:04"]

1. e4 {[%clk 0:09:58]}  c5 {[%clk 0:09:58]} 2. Nc3 {[%clk 0:09:59]}  Nc6 {[%clk 0:09:59]} 3. Bb5 {[%clk 0:09:59]}  Nd4 {[%clk 0:09:58]} 4. Nf3 {[%clk 0:10:00]}  e6 {[%clk 0:09:56]} 5. O-O {[%clk 0:10:00]}  a6 {[%clk 0:09:57]} 6. Bd3 {[%clk 0:10:01]}  Nc6 {[%clk 0:09:58]} 7. a3 {[%clk 0:10:02]}  g6 {[%clk 0:09:25]} 8. b4 {[%clk 0:10:02]}  cxb4 {[%clk 0:09:23]} 9. axb4 {[%clk 0:10:04]}  Nxb4 {[%clk 0:09:24]} 10. e5 {[%clk 0:09:34]}  Nxd3 {[%clk 0:09:13]} 11. cxd3 {[%clk 0:09:35]}  d5 {[%clk 0:08:51]} 12. exd6 {[%clk 0:09:36]}  Bg7 {[%clk 0:08:12]} 13. Ba3 {[%clk 0:09:10]}  Nf6 {[%clk 0:07:53]} 14. Ne4 {[%clk 0:09:02]}  O-O {[%clk 0:07:14]} 15. Rc1 {[%clk 0:09:00]}  Nd5 {[%clk 0:06:37]} 16. d7 {[%clk 0:08:58]}  Bxd7 {[%clk 0:06:37]} 17. Bxf8 {[%clk 0:08:59]}  Qxf8 {[%clk 0:06:35]} 18. d4 {[%clk 0:09:00]}  Bb5 {[%clk 0:06:19]} 19. Re1 {[%clk 0:08:57]}  Rd8 {[%clk 0:06:01]} 20. Qb3 {[%clk 0:08:43]}  Qb4 {[%clk 0:05:26]} 21. Qa2 {[%clk 0:08:33]}  Nf4 {[%clk 0:04:01]} 22. Nc5 {[%clk 0:08:15]}  Bxd4 {[%clk 0:03:12]} 23. Nxb7 {[%clk 0:07:33]}  Rb8 {[%clk 0:02:46]} 24. Rb1 {[%clk 0:07:31]}  Qe7 {[%clk 0:01:34]} 25. Nxd4 {[%clk 0:07:30]}  Qxb7 {[%clk 0:01:29]} 26. Nf3 {[%clk 0:06:27]}  Nh3+ {[%clk 0:01:30]} 27. gxh3 {[%clk 0:06:24]}  Qxf3 {[%clk 0:01:31]} 28. Qb3 {[%clk 0:06:15]}  Qf5 {[%clk 0:01:28]} 29. Qg3 {[%clk 0:06:01]}  Rd8 {[%clk 0:01:28]} 30. Rbc1 {[%clk 0:05:58]}  Rd3 {[%clk 0:00:52]} 31. Re3 {[%clk 0:05:38]}  Rxd2 {[%clk 0:00:51]} 32. Rf3 {[%clk 0:05:12]}  Qd5 {[%clk 0:00:41]} 33. Rc8+ {[%clk 0:04:52]}  Kg7 {[%clk 0:00:42]} 34. Rxf7+ {[%clk 0:04:50]}  Kxf7 {[%clk 0:00:20]} 35. Qf4+ {[%clk 0:04:51]}  Qf5 {[%clk 0:00:10]} 36. Qxd2 {[%clk 0:04:52]}  Qe5 {[%clk 0:00:05]} 37. Qc1 {[%clk 0:04:35]}  Qe4 {[%clk 0:00:03]} 38. Rc7+ {[%clk 0:04:35]}  Kf6 {[%clk 0:00:04]} 39. Rc5 {[%clk 0:04:16]}  Qf3 {[%clk 0:00:04]} 40. Qg5+ {[%clk 0:04:17]} 1-0


[Site "Internet"]

[Event "Chessable Masters - Torneo preliminare"]
[White "Sattarov, Bobir"]
[Black "Kaufman, Lawrence"]
[WhiteFideId "14203081"]
[BlackFideId "2000555"]
[WhiteElo "2333"]
[BlackElo "2227"]
[Result "1-0"]
[Round "4"]
[TimeControl "600+2"]
[Date "2023.03.13"]
[WhiteClock "0:05:40"]
[BlackClock "0:00:05"]

1. e4 {[%clk 0:10:01]}  e5 {[%clk 0:09:58]} 2. Nf3 {[%clk 0:10:02]}  Nf6 {[%clk 0:09:52]} 3. Nc3 {[%clk 0:10:03]}  Bb4 {[%clk 0:09:50]} 4. Nxe5 {[%clk 0:09:57]}  O-O {[%clk 0:09:45]} 5. Nd3 {[%clk 0:09:57]}  Bxc3 {[%clk 0:09:40]} 6. dxc3 {[%clk 0:09:59]}  Nxe4 {[%clk 0:09:40]} 7. Be2 {[%clk 0:10:00]}  d6 {[%clk 0:09:03]} 8. O-O {[%clk 0:10:01]}  b6 {[%clk 0:08:24]} 9. f3 {[%clk 0:09:54]}  Nf6 {[%clk 0:08:15]} 10. b3 {[%clk 0:09:50]}  Bb7 {[%clk 0:08:08]} 11. c4 {[%clk 0:09:46]}  Nbd7 {[%clk 0:08:04]} 12. Bb2 {[%clk 0:09:44]}  Re8 {[%clk 0:08:02]} 13. Qd2 {[%clk 0:09:44]}  Qe7 {[%clk 0:07:26]} 14. Rae1 {[%clk 0:09:42]}  Qe3+ {[%clk 0:07:20]} 15. Qxe3 {[%clk 0:09:42]}  Rxe3 {[%clk 0:07:19]} 16. Bd1 {[%clk 0:09:03]}  Rae8 {[%clk 0:07:07]} 17. Rxe3 {[%clk 0:09:04]}  Rxe3 {[%clk 0:07:06]} 18. Kf2 {[%clk 0:09:04]}  Re7 {[%clk 0:06:35]} 19. h4 {[%clk 0:09:05]}  h6 {[%clk 0:05:32]} 20. Be2 {[%clk 0:08:58]}  Nh7 {[%clk 0:05:09]} 21. Nf4 {[%clk 0:08:52]}  Ne5 {[%clk 0:03:39]} 22. Rd1 {[%clk 0:08:46]}  Nf6 {[%clk 0:03:32]} 23. Bf1 {[%clk 0:08:31]}  Ng6 {[%clk 0:03:00]} 24. Nxg6 {[%clk 0:08:17]}  fxg6 {[%clk 0:03:01]} 25. Bd3 {[%clk 0:08:13]}  Kf7 {[%clk 0:02:56]} 26. b4 {[%clk 0:08:03]}  Bc8 {[%clk 0:01:44]} 27. c5 {[%clk 0:07:47]}  dxc5 {[%clk 0:01:38]} 28. bxc5 {[%clk 0:07:49]}  Bf5 {[%clk 0:01:21]} 29. Bc4+ {[%clk 0:07:45]}  Be6 {[%clk 0:01:20]} 30. Bb3 {[%clk 0:07:35]}  bxc5 {[%clk 0:01:14]} 31. Ba3 {[%clk 0:07:35]}  Rd7 {[%clk 0:01:00]} 32. Bxe6+ {[%clk 0:07:07]}  Kxe6 {[%clk 0:00:59]} 33. Re1+ {[%clk 0:07:08]}  Kf7 {[%clk 0:00:57]} 34. Bxc5 {[%clk 0:07:04]}  a6 {[%clk 0:00:50]} 35. Re2 {[%clk 0:06:49]}  Nd5 {[%clk 0:00:49]} 36. Rd2 {[%clk 0:06:44]}  Nf6 {[%clk 0:00:48]} 37. Rxd7+ {[%clk 0:06:42]}  Nxd7 {[%clk 0:00:47]} 38. Bd4 {[%clk 0:06:44]}  c5 {[%clk 0:00:44]} 39. Bb2 {[%clk 0:06:35]}  Nf6 {[%clk 0:00:39]} 40. Ke3 {[%clk 0:06:18]}  Ke6 {[%clk 0:00:37]} 41. Kd3 {[%clk 0:06:12]}  Kd5 {[%clk 0:00:35]} 42. c4+ {[%clk 0:06:12]}  Kd6 {[%clk 0:00:32]} 43. g4 {[%clk 0:06:10]}  h5 {[%clk 0:00:13]} 44. g5 {[%clk 0:06:05]}  Ne8 {[%clk 0:00:13]} 45. Ke4 {[%clk 0:05:59]}  Ke6 {[%clk 0:00:13]} 46. Ba3 {[%clk 0:05:52]}  Kd6 {[%clk 0:00:11]} 47. f4 {[%clk 0:05:51]}  Nc7 {[%clk 0:00:06]} 48. f5 {[%clk 0:05:52]}  gxf5+ {[%clk 0:00:07]} 49. Kxf5 {[%clk 0:05:54]}  Ne6 {[%clk 0:00:07]} 50. Kg6 {[%clk 0:05:54]}  Nf4+ {[%clk 0:00:05]} 51. Kxg7 {[%clk 0:05:55]}  Ng2 {[%clk 0:00:05]} 52. Kh6 {[%clk 0:05:52]}  Nxh4 {[%clk 0:00:06]} 53. Kxh5 {[%clk 0:05:53]}  Nf5 {[%clk 0:00:07]} 54. g6 {[%clk 0:05:48]}  Ng7+ {[%clk 0:00:06]} 55. Kh6 {[%clk 0:05:48]}  Ne6 {[%clk 0:00:06]} 56. g7 {[%clk 0:05:37]}  Nxg7 {[%clk 0:00:06]} 57. Kxg7 {[%clk 0:05:39]}  Kc6 {[%clk 0:00:05]} 58. Kf6 {[%clk 0:05:40]} 1-0


[Site "Internet"]

[Event "Chessable Masters - Torneo preliminare"]
[White "Jonkman, Harmen"]
[Black "Nigmatov, Ortik"]
[WhiteFideId "1002708"]
[BlackFideId "14202131"]
[WhiteElo "2351"]
[BlackElo "2344"]
[Result "0-1"]
[Round "4"]
[TimeControl "600+2"]
[Date "2023.03.13"]
[WhiteClock "0:01:20"]
[BlackClock "0:05:29"]

1. d4 {[%clk 0:09:56]}  Nf6 {[%clk 0:10:00]} 2. Nf3 {[%clk 0:09:50]}  e6 {[%clk 0:10:00]} 3. Bf4 {[%clk 0:09:51]}  c5 {[%clk 0:09:56]} 4. e3 {[%clk 0:09:42]}  Nc6 {[%clk 0:09:54]} 5. c3 {[%clk 0:09:35]}  d5 {[%clk 0:09:48]} 6. Nbd2 {[%clk 0:09:33]}  cxd4 {[%clk 0:09:31]} 7. exd4 {[%clk 0:09:33]}  Nh5 {[%clk 0:09:31]} 8. Bg5 {[%clk 0:09:30]}  f6 {[%clk 0:09:30]} 9. Be3 {[%clk 0:09:14]}  g6 {[%clk 0:09:27]} 10. g3 {[%clk 0:09:06]}  Ng7 {[%clk 0:08:56]} 11. Bh6 {[%clk 0:08:51]}  Nf5 {[%clk 0:08:52]} 12. Bxf8 {[%clk 0:08:50]}  Kxf8 {[%clk 0:08:54]} 13. Bg2 {[%clk 0:08:48]}  Kg7 {[%clk 0:08:53]} 14. O-O {[%clk 0:08:49]}  g5 {[%clk 0:08:46]} 15. Ne1 {[%clk 0:07:47]}  h5 {[%clk 0:08:39]} 16. Nd3 {[%clk 0:07:45]}  b6 {[%clk 0:08:24]} 17. Re1 {[%clk 0:05:21]}  Qd6 {[%clk 0:08:05]} 18. h3 {[%clk 0:05:07]}  Bd7 {[%clk 0:07:59]} 19. Nf1 {[%clk 0:04:46]}  Nce7 {[%clk 0:07:47]} 20. a4 {[%clk 0:03:59]}  a5 {[%clk 0:07:37]} 21. Ne3 {[%clk 0:03:00]}  Rac8 {[%clk 0:07:27]} 22. Qd2 {[%clk 0:02:58]}  Nxe3 {[%clk 0:07:18]} 23. Qxe3 {[%clk 0:02:57]}  Nf5 {[%clk 0:07:19]} 24. Qd2 {[%clk 0:02:57]}  Rc4 {[%clk 0:07:05]} 25. b3 {[%clk 0:02:57]}  Rc7 {[%clk 0:07:06]} 26. Rac1 {[%clk 0:02:55]}  Rhc8 {[%clk 0:07:06]} 27. Qa2 {[%clk 0:02:50]}  Rxc3 {[%clk 0:07:02]} 28. Rcd1 {[%clk 0:02:49]}  Rc2 {[%clk 0:07:01]} 29. Qb1 {[%clk 0:02:48]}  Nxg3 {[%clk 0:06:22]} 30. Nc5 {[%clk 0:02:40]}  Ne2+ {[%clk 0:06:04]} 31. Kh1 {[%clk 0:02:40]}  R8xc5 {[%clk 0:05:34]} 32. dxc5 {[%clk 0:02:37]}  Qxc5 {[%clk 0:05:36]} 33. b4 {[%clk 0:02:25]}  axb4 {[%clk 0:05:35]} 34. Qb3 {[%clk 0:02:25]}  Qxf2 {[%clk 0:05:30]} 35. Rxe2 {[%clk 0:01:18]}  Rxe2 {[%clk 0:05:28]} 36. Rg1 {[%clk 0:01:19]}  Re1 {[%clk 0:05:25]} 37. Rxe1 {[%clk 0:01:17]}  Qxe1+ {[%clk 0:05:27]} 38. Kh2 {[%clk 0:01:19]}  Qe5+ {[%clk 0:05:27]} 39. Kh1 {[%clk 0:01:20]}  Qc3 {[%clk 0:05:29]} 40. Qd1 {[%clk 0:01:20]}  b3 {[%clk 0:05:29]} 0-1


[Site "Internet"]

[Event "Chessable Masters - Torneo preliminare"]
[White "Iskusnyh, Sergei"]
[Black "Volkov, Sergey"]
[WhiteFideId "4120027"]
[BlackFideId "4122763"]
[WhiteElo "2345"]
[BlackElo "2496"]
[Result "0-1"]
[Round "4"]
[TimeControl "600+2"]
[Date "2023.03.13"]
[WhiteClock "0:00:12"]
[BlackClock "0:02:00"]

1. d4 {[%clk 0:10:01]}  d5 {[%clk 0:10:00]} 2. c4 {[%clk 0:09:54]}  c6 {[%clk 0:10:00]} 3. Nf3 {[%clk 0:09:47]}  Nf6 {[%clk 0:10:01]} 4. e3 {[%clk 0:09:45]}  Bf5 {[%clk 0:10:01]} 5. Nc3 {[%clk 0:09:42]}  e6 {[%clk 0:10:02]} 6. Nh4 {[%clk 0:09:35]}  Bg6 {[%clk 0:10:03]} 7. Bd2 {[%clk 0:09:28]}  Bh5 {[%clk 0:09:54]} 8. Qb3 {[%clk 0:09:05]}  Qb6 {[%clk 0:09:53]} 9. c5 {[%clk 0:08:58]}  Qc7 {[%clk 0:09:52]} 10. h3 {[%clk 0:08:46]}  Nbd7 {[%clk 0:09:27]} 11. g4 {[%clk 0:08:43]}  Bg6 {[%clk 0:09:27]} 12. Nxg6 {[%clk 0:08:42]}  hxg6 {[%clk 0:09:26]} 13. Bg2 {[%clk 0:08:28]}  e5 {[%clk 0:08:57]} 14. O-O-O {[%clk 0:08:07]}  g5 {[%clk 0:08:06]} 15. Rhe1 {[%clk 0:07:26]}  Be7 {[%clk 0:07:46]} 16. e4 {[%clk 0:07:09]}  exd4 {[%clk 0:07:44]} 17. exd5 {[%clk 0:07:08]}  Nxc5 {[%clk 0:07:44]} 18. Qc4 {[%clk 0:07:00]}  dxc3 {[%clk 0:07:04]} 19. Qxc5 {[%clk 0:05:28]}  Kf8 {[%clk 0:06:36]} 20. Qxc3 {[%clk 0:05:15]}  Qh2 {[%clk 0:06:07]} 21. Rxe7 {[%clk 0:04:17]}  Qxg2 {[%clk 0:05:49]} 22. Rxb7 {[%clk 0:03:56]}  Rxh3 {[%clk 0:05:17]} 23. Qxc6 {[%clk 0:03:02]}  Kg8 {[%clk 0:03:48]} 24. Bxg5 {[%clk 0:02:34]}  Qxg4 {[%clk 0:03:33]} 25. Bxf6 {[%clk 0:02:25]}  Rc8 {[%clk 0:03:30]} 26. Bc3 {[%clk 0:01:47]}  Rxc6 {[%clk 0:03:22]} 27. dxc6 {[%clk 0:01:49]}  Qf4+ {[%clk 0:03:15]} 28. Kb1 {[%clk 0:01:10]}  Qe4+ {[%clk 0:03:14]} 29. Ka1 {[%clk 0:01:09]}  Qxc6 {[%clk 0:03:11]} 30. Rxa7 {[%clk 0:01:02]}  Qb6 {[%clk 0:02:26]} 31. Ra8+ {[%clk 0:00:43]}  Kh7 {[%clk 0:02:26]} 32. a4 {[%clk 0:00:44]}  Qxf2 {[%clk 0:02:23]} 33. a5 {[%clk 0:00:44]}  Qc2 {[%clk 0:02:03]} 34. Rdd8 {[%clk 0:00:12]}  Rh1+ {[%clk 0:02:00]} 0-1


[Site "Internet"]